fUSD/lending_fUSD_20240707
["ID","MTS","AMOUNT","RATE_DAILY","PERIOD"]
[331427589,1720389772258,-891.82,0.00034264,50]
[331427590,1720389772298,-683.53,0.00034264,41]
[331427591,1720389772345,-503.0,0.00034264,46]
[331427592,1720389772387,-668.7,0.00034264,49]
[331427593,1720389772428,-681.66,0.00034264,42]
[331427594,1720389772467,-683.53,0.00034264,42]
[331427595,1720389772508,-503.0,0.00034264,47]
[331427596,1720389772547,-668.7,0.00034264,50]
[331427597,1720389772586,-681.66,0.00034264,43]
[331427598,1720389772624,-683.53,0.00034264,43]
[331427599,1720389772661,-891.82,0.00034264,51]
[331427600,1720389772700,-668.7,0.00034264,51]
[331427601,1720389772740,-681.66,0.00034264,44]
[331427602,1720389772785,-891.82,0.00034264,52]
[331427603,1720389772823,-503.0,0.00034264,48]
[331427604,1720389772864,-683.53,0.00034264,44]
[331427605,1720389772901,-668.7,0.00034264,52]
[331427606,1720389772942,-891.91502424,0.00034264,53]
[331427607,1720389772982,-503.0,0.00034264,49]
[331427608,1720389773021,-683.53,0.00034264,45]
[331427609,1720389773059,-668.93190208,0.00034264,53]
[331427610,1720389773096,-681.66,0.00034264,45]
[331427611,1720389773134,-503.0,0.00034264,50]
[331427612,1720389773172,-683.53,0.00034264,46]
[331427613,1720389773212,-681.66,0.00034264,46]
[331427614,1720389773250,-503.0,0.00034264,51]
[331427615,1720389773294,-683.53,0.00034264,47]
[331427616,1720389773337,-681.66,0.00034264,47]
[331427617,1720389773376,-500.0,0.00034264,30]
[331427618,1720389773415,-503.0,0.00034264,52]
[331427619,1720389773456,-683.53,0.00034264,48]
[331427620,1720389773498,-500.0,0.00034264,30]
[331427621,1720389773635,-681.66,0.00034264,48]
[331427622,1720389773673,-500.0,0.00034264,31]
[331427623,1720389773712,-503.06261001,0.00034264,53]
[331427624,1720389773750,-683.53,0.00034264,49]
[331427625,1720389773796,-500.0,0.00034264,32]
[331427626,1720389773834,-500.0,0.00034264,31]
[331427627,1720389773876,-681.66,0.00034264,49]
[331427628,1720389773915,-683.53,0.00034264,50]
[331427629,1720389773956,-500.0,0.00034264,32]
[331427630,1720389774003,-500.0,0.00034264,33]
[331427631,1720389774049,-681.66,0.00034264,50]
[331427632,1720389774097,-683.53,0.00034264,51]
[331427633,1720389774146,-500.0,0.00034264,34]
[331427634,1720389774194,-500.0,0.00034264,33]
[331427635,1720389774240,-681.66,0.00034264,51]
[331427636,1720389774288,-683.53,0.00034264,52]
[331427637,1720389774337,-500.0,0.00034264,34]
[331427638,1720389774380,-681.66,0.00034264,52]
[331427639,1720389774426,-500.0,0.00034264,35]
[331427640,1720389774472,-500.0,0.00034264,35]
[331427641,1720389774513,-683.63738841,0.00034264,53]
[331427642,1720389774557,-681.8142679,0.00034264,53]
[331427643,1720389774599,-500.0,0.00034264,30]
[331427644,1720389774641,-500.0,0.00034264,36]
[331427645,1720389774680,-500.0,0.00034264,36]
[331427646,1720389774723,-500.0,0.00034264,31]
[331427647,1720389774763,-1142.16,0.00034264,30]
[331427648,1720389774804,-500.0,0.00034264,30]
[331427649,1720389774844,-500.0,0.00034264,37]
[331427650,1720389774886,-500.0,0.00034264,37]
[331427651,1720389774929,-500.0,0.00034264,30]
[331427652,1720389774976,-500.0,0.00034264,32]
[331427653,1720389775019,-691.91,0.00034264,30]
[331427654,1720389775064,-1142.16,0.00034264,31]
[331427655,1720389775107,-500.0,0.00034264,31]
[331427656,1720389775152,-500.0,0.00034264,30]
[331427657,1720389775195,-500.0,0.00034264,38]
[331427658,1720389775239,-500.0,0.00034264,38]
[331427659,1720389775281,-500.0,0.00034264,33]
[331427660,1720389775325,-691.91,0.00034264,31]
[331427661,1720389775366,-500.0,0.00034264,31]
[331427662,1720389775409,-500.0,0.00034264,31]
[331427663,1720389775449,-500.0,0.00034264,32]
[331427664,1720389775494,-500.0,0.00034264,39]
[331427665,1720389775536,-691.91,0.00034264,32]
[331427666,1720389775576,-500.0,0.00034264,34]
[331427667,1720389775619,-1142.16,0.00034264,32]
[331427668,1720389775660,-500.0,0.00034264,32]
[331427669,1720389775704,-505.497112,0.00034264,32]
[331427670,1720389775748,-500.0,0.00034264,33]
[331427671,1720389775791,-500.0,0.00034264,40]
[331427672,1720389775831,-691.91,0.00034264,33]
[331427673,1720389775872,-500.0,0.00034264,39]
[331427674,1720389775913,-500.0,0.00034264,35]
[331427675,1720389775956,-1142.16,0.00034264,33]
[331427676,1720389775997,-500.0,0.00034264,33]
[331427677,1720389776039,-500.0,0.00034264,34]
[331427678,1720389776080,-500.0,0.00034264,41]
[331427679,1720389776121,-691.91,0.00034264,34]
[331427680,1720389776162,-500.0,0.00034264,40]
[331427681,1720389776202,-500.0,0.00034264,36]
[331427682,1720389776244,-500.0,0.00034264,35]
[331427683,1720389776284,-691.91,0.00034264,35]
[331427684,1720389776326,-500.0,0.00034264,37]
[331427685,1720389776366,-1142.16,0.00034264,34]
[331427686,1720389776407,-500.0,0.00034264,30]
[331427687,1720389776446,-500.0,0.00034264,41]
[331427688,1720389776489,-500.0,0.00034264,34]
[331427689,1720389776528,-500.0,0.00034264,36]
[331427690,1720389776570,-691.91,0.00034264,36]
[331427691,1720389776610,-915.46,0.00034264,30]
[331427692,1720389776651,-500.0,0.00034264,38]
[331427693,1720389776689,-1142.16,0.00034264,35]
[331427694,1720389776729,-500.0,0.00034264,31]
[331427695,1720389776769,-500.0,0.00034264,42]
[331427696,1720389776809,-500.0,0.00034264,37]
[331427697,1720389776849,-691.91,0.00034264,37]
[331427698,1720389776889,-915.46,0.00034264,31]
[331427699,1720389776932,-1142.16,0.00034264,36]
[331427700,1720389776972,-500.0,0.00034264,35]
[331427701,1720389777014,-500.0,0.00034264,39]
[331427702,1720389777053,-509.97509112,0.00034264,32]
[331427703,1720389777096,-232.59072633,0.00034264,43]
[331427704,1720389777137,-500.0,0.00034264,38]
[331427705,1720389777181,-915.46,0.00034264,32]
[331427706,1720389777221,-500.0,0.00034264,36]
[331427707,1720389777263,-1142.16,0.00034264,37]
[331427708,1720389777304,-500.0,0.00034264,40]
[331427709,1720389777354,-500.0,0.00034264,39]
[331427710,1720389777396,-691.91,0.00034264,38]
[331427711,1720389777442,-500.0,0.00034264,37]
[331427712,1720389777481,-500.0,0.00034264,41]
[331427713,1720389777523,-915.46,0.00034264,33]
[331427714,1720389777561,-500.0,0.00034264,30]
[331427715,1720389777602,-511.50515919,0.00034264,40]
[331427716,1720389777644,-691.91,0.00034264,39]
[331427717,1720389777682,-500.0,0.00034264,38]
[331427718,1720389777727,-299.97880356,0.00034264,42]
[331427719,1720389777767,-1142.16,0.00034264,38]
[331427720,1720389777811,-915.46,0.00034264,34]
[331427721,1720389777853,-500.0,0.00034264,30]
[331427722,1720389777908,-500.0,0.00034264,31]
[331427723,1720389777953,-691.91,0.00034264,40]
[331427724,1720389778200,-500.0,0.00034264,39]
[331427725,1720389778242,-500.0,0.00034264,30]
[331427726,1720389778282,-1142.16,0.00034264,39]
[331427727,1720389778322,-500.0,0.00034264,32]
[331427728,1720389778361,-500.0,0.00034264,31]
[331427729,1720389778404,-691.91,0.00034264,41]
[331427730,1720389778450,-500.0,0.00034264,40]
[331427731,1720389778496,-500.0,0.00034264,31]
[331427732,1720389778538,-1142.16,0.00034264,40]
[331427733,1720389778581,-915.46,0.00034264,35]
[331427734,1720389778624,-500.0,0.00034264,32]
[331427735,1720389778665,-691.91,0.00034264,42]
[331427736,1720389778708,-370.58481368,0.00034264,41]
[331427737,1720389778749,-1142.16,0.00034264,41]
[331427738,1720389778792,-500.0,0.00034264,33]
[331427739,1720389778832,-915.46,0.00034264,36]
[331427740,1720389778873,-500.0,0.00034264,33]
[331427741,1720389778916,-691.91,0.00034264,43]
[331427742,1720389778958,-1142.16,0.00034264,42]
[331427743,1720389779008,-500.0,0.00034264,34]
[331427744,1720389779058,-915.46,0.00034264,37]
[331427745,1720389779105,-500.0,0.00034264,34]
[331427746,1720389779150,-1142.16,0.00034264,43]
[331427747,1720389779197,-691.91,0.00034264,44]
[331427748,1720389779240,-500.0,0.00034264,35]
[331427749,1720389779288,-500.0,0.00034264,35]
[331427750,1720389779331,-915.46,0.00034264,38]
[331427751,1720389779373,-1142.16,0.00034264,44]
[331427752,1720389779418,-691.91,0.00034264,45]
[331427753,1720389779459,-500.0,0.00034264,36]
[331427754,1720389779503,-500.0,0.00034264,36]
[331427755,1720389779542,-1142.16,0.00034264,45]
[331427756,1720389779586,-500.0,0.00034264,37]
[331427757,1720389779631,-1142.16,0.00034264,46]
[331427758,1720389779673,-691.91,0.00034264,46]
[331427759,1720389779720,-500.0,0.00034264,37]
[331427760,1720389779761,-500.0,0.00034264,38]
[331427761,1720389779804,-1142.16,0.00034264,47]
[331427762,1720389779852,-691.91,0.00034264,47]
[331427763,1720389779895,-500.0,0.00034264,39]
[331427764,1720389779940,-1142.16,0.00034264,48]
[331427765,1720389779988,-691.91,0.00034264,48]
[331427766,1720389780036,-500.0,0.00034264,40]
[331427767,1720389780088,-500.0,0.00034264,38]
[331427768,1720389780135,-1142.16,0.00034264,49]
[331427769,1720389780182,-691.91,0.00034264,49]
[331427770,1720389780227,-500.0,0.00034264,41]
[331427771,1720389780277,-500.0,0.00034264,39]
[331427772,1720389780324,-1142.16,0.00034264,50]
[331427773,1720389780370,-691.91,0.00034264,50]
[331427774,1720389780414,-500.0,0.00034264,42]
[331427775,1720389780461,-500.0,0.00034264,40]
[331427776,1720389780510,-1142.16,0.00034264,51]
[331427777,1720389780555,-691.91,0.00034264,51]
[331427778,1720389780602,-500.0,0.00034264,43]
[331427779,1720389780646,-500.0,0.00034264,41]
[331427780,1720389780690,-1142.16,0.00034264,52]
[331427781,1720389780733,-500.0,0.00034264,44]
[331427782,1720389780779,-500.0,0.00034264,42]
[331427783,1720389780824,-691.91,0.00034264,52]
[331427784,1720389780867,-1142.17209143,0.00034264,53]
[331427785,1720389780914,-500.0,0.00034264,45]
[331427786,1720389780958,-691.96109276,0.00034264,53]
[331427787,1720389781005,-500.0,0.00034264,43]
[331427788,1720389781049,-500.0,0.00034264,30]
[331427789,1720389781093,-500.0,0.00034264,46]
[331427790,1720389781141,-500.0,0.00034264,44]
[331427791,1720389781184,-500.0,0.00034264,31]
[331427792,1720389781232,-500.0,0.00034264,47]
[331427793,1720389781280,-500.0,0.00034264,45]
[331427794,1720389781329,-1750.99,0.00034264,30]
[331427795,1720389781377,-500.0,0.00034264,32]
[331427796,1720389781432,-506.16149412,0.00034264,30]
[331427797,1720389781483,-500.0,0.00034264,48]
[331427798,1720389781529,-500.0,0.00034264,46]
[331427799,1720389781578,-1750.99,0.00034264,31]
[331427800,1720389781639,-500.0,0.00034264,49]
[331427801,1720389781684,-500.0,0.00034264,47]
[331427802,1720389781734,-500.0,0.00034264,33]
[331427803,1720389781781,-500.0,0.00034264,50]
[331427804,1720389781825,-500.0,0.00034264,48]
[331427805,1720389781871,-1750.99,0.00034264,32]
[331427806,1720389781916,-500.0,0.00034264,34]
[331427807,1720389781962,-500.0,0.00034264,51]
[331427808,1720389782006,-500.0,0.00034264,49]
[331427809,1720389782048,-1750.99,0.00034264,33]
[331427810,1720389782093,-500.0,0.00034264,35]
[331427811,1720389782137,-500.0,0.00034264,50]
[331427812,1720389782180,-358.54426725,0.00034264,52]
[331427813,1720389782220,-1750.99,0.00034264,34]
[331427814,1720389782886,-500.0,0.00034264,36]
[331427815,1720389782937,-500.0,0.00034264,51]
[331427816,1720389782995,-546.08,0.00034264,30]
[331427817,1720389783063,-504.77093648,0.00034264,32]
[331427818,1720389783133,-1750.99,0.00034264,35]
[331427819,1720389783200,-489.2921981,0.00034264,52]
[331427820,1720389783260,-500.0,0.00034264,37]
[331427821,1720389783305,-546.08,0.00034264,31]
[331427822,1720389783352,-1750.99,0.00034264,36]
[331427823,1720389783395,-500.0,0.00034264,30]
[331427824,1720389783440,-500.0,0.00034264,38]
[331427825,1720389783483,-546.08,0.00034264,32]
[331427826,1720389783525,-1750.99,0.00034264,37]
[331427827,1720389783568,-500.0,0.00034264,31]
[331427828,1720389783607,-546.08,0.00034264,33]
[331427829,1720389783648,-500.0,0.00034264,39]
[331427830,1720389783688,-505.17393484,0.00034264,32]
[331427831,1720389783729,-500.0,0.00034264,40]
[331427832,1720389783769,-546.08,0.00034264,34]
[331427833,1720389783808,-500.0,0.00034264,41]
[331427834,1720389783849,-500.0,0.00034264,42]
[331427835,1720389783890,-546.08,0.00034264,35]
[331427836,1720389783933,-500.0,0.00034264,30]
[331427837,1720389783977,-546.08,0.00034264,36]
[331427838,1720389784024,-500.0,0.00034264,43]
[331427839,1720389784070,-500.0,0.00034264,30]
[331427840,1720389784118,-546.08,0.00034264,37]
[331427841,1720389784162,-500.0,0.00034264,44]
[331427842,1720389784209,-500.0,0.00034264,31]
[331427843,1720389784254,-610.7387913,0.00034264,30]
[331427844,1720389784298,-500.0,0.00034264,31]
[331427845,1720389784339,-1750.99,0.00034264,38]
[331427846,1720389784385,-500.0,0.00034264,45]
[331427847,1720389784424,-500.0,0.00034264,32]
[331427848,1720389784468,-500.0,0.00034264,32]
[331427849,1720389784508,-500.0,0.00034264,46]
[331427850,1720389784548,-1750.99,0.00034264,39]
[331427851,1720389784586,-500.0,0.00034264,33]
[331427852,1720389784625,-546.08,0.00034264,38]
[331427853,1720389784665,-608.7,0.00034264,30]
[331427854,1720389784704,-500.0,0.00034264,33]
[331427855,1720389784746,-424.37749475,0.00034264,47]
[331427856,1720389784788,-1750.99,0.00034264,40]
[331427857,1720389784836,-546.08,0.00034264,39]
[331427858,1720389784879,-608.7,0.00034264,31]
[331427859,1720389784925,-500.0,0.00034264,34]
[331427860,1720389784987,-1750.99,0.00034264,41]
[331427861,1720389785034,-608.7,0.00034264,32]
[331427862,1720389785079,-500.0,0.00034264,35]
[331427863,1720389785125,-1750.99,0.00034264,42]
[331427864,1720389785171,-608.7,0.00034264,33]
[331427865,1720389785214,-500.0,0.00034264,36]
[331427866,1720389785264,-1750.99,0.00034264,43]
[331427867,1720389785306,-608.7,0.00034264,34]
[331427868,1720389785355,-500.0,0.00034264,37]
[331427869,1720389785397,-757.65,0.00034264,30]
[331427870,1720389785441,-1750.99,0.00034264,44]
[331427871,1720389785483,-608.7,0.00034264,35]
[331427872,1720389785524,-500.0,0.00034264,38]
[331427873,1720389785566,-915.46,0.00034264,39]
[331427874,1720389785608,-1750.99,0.00034264,45]
[331427875,1720389785650,-757.65,0.00034264,31]
[331427876,1720389785692,-608.7,0.00034264,36]
[331427877,1720389785736,-915.46,0.00034264,40]
[331427878,1720389785778,-1750.99,0.00034264,46]
[331427879,1720389785822,-757.65,0.00034264,32]
[331427880,1720389785865,-500.0,0.00034264,34]
[331427881,1720389785911,-608.7,0.00034264,37]
[331427882,1720389785954,-915.46,0.00034264,41]
[331427883,1720389785998,-1750.99,0.00034264,47]
[331427884,1720389786039,-757.65,0.00034264,33]
[331427885,1720389786240,-500.0,0.00034264,35]
[331427886,1720389786286,-608.7,0.00034264,38]
[331427887,1720389786326,-915.46,0.00034264,42]
[331427888,1720389786366,-1750.99,0.00034264,48]
[331427889,1720389786405,-757.65,0.00034264,34]
[331427890,1720389786446,-500.0,0.00034264,36]
[331427891,1720389786485,-608.7,0.00034264,39]
[331427892,1720389786526,-915.46,0.00034264,43]
[331427893,1720389786564,-1750.99,0.00034264,49]
[331427894,1720389786606,-757.65,0.00034264,35]
[331427895,1720389786646,-500.0,0.00034264,37]
[331427896,1720389786688,-608.7,0.00034264,40]
[331427897,1720389786732,-915.46,0.00034264,44]
[331427898,1720389786776,-1750.99,0.00034264,50]
[331427899,1720389786816,-608.7,0.00034264,41]
[331427900,1720389786857,-757.65,0.00034264,36]
[331427901,1720389786897,-500.0,0.00034264,38]
[331427902,1720389786940,-915.46,0.00034264,45]
[331427903,1720389786980,-1750.99,0.00034264,51]
[331427904,1720389787022,-608.7,0.00034264,42]
[331427905,1720389787061,-500.0,0.00034264,39]
[331427906,1720389787104,-757.65,0.00034264,37]
[331427907,1720389787143,-915.46,0.00034264,46]
[331427908,1720389787186,-608.7,0.00034264,43]
[331427909,1720389787228,-757.65,0.00034264,38]
[331427910,1720389787269,-571.74696901,0.00034264,40]
[331427911,1720389787312,-1750.99,0.00034264,52]
[331427912,1720389787353,-915.46,0.00034264,47]
[331427913,1720389787394,-757.65,0.00034264,39]
[331427914,1720389787434,-608.7,0.00034264,44]
[331427915,1720389787480,-1751.16092401,0.00034264,53]
[331427916,1720389787520,-757.65,0.00034264,40]
[331427917,1720389787567,-608.7,0.00034264,45]
[331427918,1720389787607,-915.46,0.00034264,48]
[331427919,1720389787648,-500.0,0.00034264,30]
[331427920,1720389787687,-757.65,0.00034264,41]
[331427921,1720389787728,-608.7,0.00034264,46]
[331427922,1720389787767,-504.70763753,0.00034264,31]
[331427923,1720389787808,-757.65,0.00034264,42]
[331427924,1720389787846,-608.7,0.00034264,47]
[331427925,1720389787884,-546.08,0.00034264,40]
[331427926,1720389787921,-915.46,0.00034264,49]
[331427927,1720389787961,-757.65,0.00034264,43]
[331427928,1720389788000,-608.7,0.00034264,48]
[331427929,1720389788038,-546.08,0.00034264,41]
[331427930,1720389788076,-915.46,0.00034264,50]
[331427931,1720389788114,-757.65,0.00034264,44]
[331427932,1720389788154,-608.7,0.00034264,49]
[331427933,1720389788192,-546.08,0.00034264,42]
[331427934,1720389788232,-608.7,0.00034264,50]
[331427935,1720389788270,-757.65,0.00034264,45]
[331427936,1720389788315,-546.08,0.00034264,43]
[331427937,1720389788353,-757.65,0.00034264,46]
[331427938,1720389788394,-546.08,0.00034264,44]
[331427939,1720389788433,-915.46,0.00034264,51]
[331427940,1720389788474,-500.0,0.00034264,30]
[331427941,1720389788512,-757.65,0.00034264,47]
[331427942,1720389788552,-608.7,0.00034264,51]
[331427943,1720389788589,-546.08,0.00034264,45]
[331427944,1720389788627,-757.65,0.00034264,48]
[331427945,1720389788664,-500.0,0.00034264,31]
[331427946,1720389788702,-915.46,0.00034264,52]
[331427947,1720389788740,-608.7,0.00034264,52]
[331427948,1720389788779,-546.08,0.00034264,46]
[331427949,1720389788817,-915.6082667,0.00034264,53]
[331427950,1720389788856,-500.0,0.00034264,32]
[331427951,1720389788895,-500.0,0.00034264,30]
[331427952,1720389788935,-608.92611248,0.00034264,53]
[331427953,1720389788981,-546.08,0.00034264,47]
[331427954,1720389789026,-757.65,0.00034264,49]
[331427955,1720389789071,-500.0,0.00034264,31]
[331427956,1720389789117,-546.08,0.00034264,48]
[331427957,1720389789163,-540.78,0.00034264,33]
[331427958,1720389789209,-618.03583193,0.00034264,30]
[331427959,1720389789258,-757.65,0.00034264,50]
[331427960,1720389789304,-546.08,0.00034264,49]
[331427961,1720389789352,-500.0,0.00034264,32]
[331427962,1720389789398,-500.0,0.00034264,30]
[331427963,1720389789442,-757.65,0.00034264,51]
[331427964,1720389789486,-546.08,0.00034264,50]
[331427965,1720389789526,-500.0,0.00034264,30]
[331427966,1720389789568,-500.0,0.00034264,33]
[331427967,1720389789608,-500.0,0.00034264,31]
[331427968,1720389789652,-500.0,0.00034264,34]
[331427969,1720389789692,-546.08,0.00034264,51]
[331427970,1720389789733,-757.65,0.00034264,52]
[331427971,1720389789775,-506.63556452,0.00034264,32]
[331427972,1720389789815,-500.0,0.00034264,35]
[331427973,1720389789859,-757.79336739,0.00034264,53]
[331427974,1720389789899,-546.08,0.00034264,52]
[331427975,1720389789942,-500.0,0.00034264,31]
[331427976,1720389789985,-500.0,0.00034264,36]
[331427977,1720389790033,-546.13059501,0.00034264,53]
[331427978,1720389790074,-500.0,0.00034264,37]
[331427979,1720389790117,-504.757454,0.00034264,32]
[331427980,1720389790156,-970.6,0.00034264,30]
[331427981,1720389790197,-500.0,0.00034264,38]
[331427982,1720389790238,-500.0,0.00034264,30]
[331427983,1720389790278,-970.6,0.00034264,31]
[331427984,1720389790318,-500.0,0.00034264,39]
[331427985,1720389790356,-500.0,0.00034264,31]
[331427986,1720389790394,-612.33927933,0.00034264,40]
[331427987,1720389790433,-427.24,0.00034264,32]
[331427988,1720389790473,-970.6,0.00034264,32]
[331427989,1720389790670,-970.6,0.00034264,33]
[331427990,1720389790714,-970.6,0.00034264,34]
[331427991,1720389790764,-500.0,0.00034264,30]
[331427992,1720389790810,-970.6,0.00034264,35]
[331427993,1720389790850,-885.01,0.00034264,30]
[331427994,1720389790892,-500.0,0.00034264,31]
[331427995,1720389790931,-500.0,0.00034264,30]
[331427996,1720389790973,-970.6,0.00034264,36]
[331427997,1720389791020,-885.01,0.00034264,31]
[331427998,1720389791063,-500.0,0.00034264,32]
[331427999,1720389791103,-503.1707279,0.00034264,31]
[331428000,1720389791147,-885.01,0.00034264,32]
[331428001,1720389791186,-970.6,0.00034264,37]
[331428002,1720389791227,-500.0,0.00034264,33]
[331428003,1720389791269,-970.6,0.00034264,38]
[331428004,1720389791309,-885.01,0.00034264,33]
[331428005,1720389791352,-500.0,0.00034264,34]
[331428006,1720389791390,-970.6,0.00034264,39]
[331428007,1720389791432,-1323.61,0.00034264,30]
[331428008,1720389791470,-885.01,0.00034264,34]
[331428009,1720389791514,-500.0,0.00034264,35]
[331428010,1720389791552,-1323.61,0.00034264,31]
[331428011,1720389791593,-970.6,0.00034264,40]
[331428012,1720389791631,-500.0,0.00034264,36]
[331428013,1720389791671,-885.01,0.00034264,35]
[331428014,1720389791712,-1323.61,0.00034264,32]
[331428015,1720389791753,-970.6,0.00034264,41]
[331428016,1720389791796,-885.01,0.00034264,36]
[331428017,1720389791836,-970.6,0.00034264,42]
[331428018,1720389791879,-500.0,0.00034264,37]
[331428019,1720389791919,-500.0,0.00034264,30]
[331428020,1720389791963,-1323.61,0.00034264,33]
[331428021,1720389792004,-885.01,0.00034264,37]
[331428022,1720389792048,-970.6,0.00034264,43]
[331428023,1720389792088,-500.0,0.00034264,38]
[331428024,1720389792129,-500.0,0.00034264,31]
[331428025,1720389792171,-1323.61,0.00034264,34]
[331428026,1720389792216,-970.6,0.00034264,44]
[331428027,1720389792256,-500.0,0.00034264,32]
[331428028,1720389792296,-500.0,0.00034264,39]
[331428029,1720389792339,-500.0,0.00034264,30]
[331428030,1720389792377,-1323.61,0.00034264,35]
[331428031,1720389792421,-500.0,0.00034264,30]
[331428032,1720389792461,-970.6,0.00034264,45]
[331428033,1720389792505,-885.01,0.00034264,38]
[331428034,1720389792542,-500.0,0.00034264,31]
[331428035,1720389792583,-500.0,0.00034264,31]
[331428036,1720389792621,-970.6,0.00034264,46]
[331428037,1720389792659,-885.01,0.00034264,39]
[331428038,1720389792697,-500.0,0.00034264,32]
[331428039,1720389792737,-500.0,0.00034264,40]
[331428040,1720389792777,-500.0,0.00034264,33]
[331428041,1720389792815,-1323.61,0.00034264,36]
[331428042,1720389792858,-505.44417343,0.00034264,32]
[331428043,1720389792897,-885.01,0.00034264,40]
[331428044,1720389792940,-500.0,0.00034264,33]
[331428045,1720389792980,-500.0,0.00034264,41]
[331428046,1720389793022,-500.0,0.00034264,34]
[331428047,1720389793060,-885.01,0.00034264,41]
[331428048,1720389793100,-500.0,0.00034264,34]
[331428049,1720389793138,-970.6,0.00034264,47]
[331428050,1720389793177,-500.0,0.00034264,35]
[331428051,1720389793214,-500.0,0.00034264,42]
[331428052,1720389793253,-885.01,0.00034264,42]
[331428053,1720389793292,-500.0,0.00034264,35]
[331428054,1720389793330,-970.6,0.00034264,48]
[331428055,1720389793371,-500.0,0.00034264,36]
[331428056,1720389793408,-500.0,0.00034264,43]
[331428057,1720389793450,-885.01,0.00034264,43]
[331428058,1720389793489,-500.0,0.00034264,36]
[331428059,1720389793531,-500.0,0.00034264,37]
[331428060,1720389793568,-970.6,0.00034264,49]
[331428061,1720389793607,-500.0,0.00034264,44]
[331428062,1720389793644,-885.01,0.00034264,44]
[331428063,1720389793684,-194.45353084,0.00034264,37]
[331428064,1720389793721,-970.6,0.00034264,50]
[331428065,1720389793759,-500.0,0.00034264,38]
[331428066,1720389793797,-500.0,0.00034264,45]
[331428067,1720389793834,-885.01,0.00034264,45]
[331428068,1720389793874,-970.6,0.00034264,51]
[331428069,1720389793912,-500.0,0.00034264,39]
[331428070,1720389793954,-323.2957558,0.00034264,46]
[331428071,1720389793999,-885.01,0.00034264,46]
[331428072,1720389794050,-970.6,0.00034264,52]
[331428073,1720389794102,-500.0,0.00034264,40]
[331428074,1720389794151,-970.6,0.00034264,53]
[331428075,1720389794200,-500.0,0.00034264,41]
[331428076,1720389794247,-885.01,0.00034264,47]
[331428077,1720389794292,-500.0,0.00034264,42]
[331428078,1720389794699,-885.01,0.00034264,48]
[331428079,1720389794740,-500.0,0.00034264,43]
[331428080,1720389794784,-885.01,0.00034264,49]
[331428081,1720389794824,-500.0,0.00034264,44]
[331428082,1720389794866,-500.0,0.00034264,45]
[331428083,1720389794907,-500.0,0.00034264,30]
[331428084,1720389794951,-500.0,0.00034264,30]
[331428085,1720389794992,-536.56,0.00034264,46]
[331428086,1720389795035,-500.0,0.00034264,31]
[331428087,1720389795076,-885.01,0.00034264,50]
[331428088,1720389795120,-500.0,0.00034264,31]